[Event "Israel Team Ch Under 18"]
[Site "Jerusalem"]
[Date "2017.08.13"]
[Round "1"]
[White "Adar, Idan"]
[Black "Avisar, Yahav"]
[Result "0-1"]
[ECO "A04"]
[WhiteElo "2082"]
[BlackElo "1379"]
[Annotator "NA RC"]
[PlyCount "74"]
[EventDate "2017.??.??"]
[EventType "swiss"]
[EventCountry "ISR"]
[SourceTitle "playchess.com"]
[Source "ChessBase"]
[SourceQuality "1"]
[TimeControl "40/5400+30:1800+30"]

1. d3 {[%emt 0:40:15]} c5 {[%emt 0:40:46]} 2. g3 {[%emt 0:00:29]} Nc6 {[%emt 0:00:25]} 3. Bg2 {[%emt 0:00:28]} g6 {[%emt 0:00:31]} 4. Nf3 {[%emt 0:00:49]} Bg7 5. O-O {[%emt 0:00:48]} e5 {[%emt 0:01:01]} 6. e4 {[%emt 0:00:41]} Nge7 {[%emt 0:00:25]} 7. c4 {[%emt 0:04:42] LiveBook: 9 Games} O-O {[%emt 0:00:41]} 8. a3 {[%emt 0:01:28]} Rb8 $11 {[%emt 0:01:46]} 9. Be3 {[%emt 0:02:29]} d6 {[%emt 0:00:30]} 10. Nbd2 {[%emt 0:01:27]} a6 {[%emt 0:00:59]} 11. Nh4 {[%emt 0:01:21]} Kh8 {[%emt 0:04:11]} 12. Rb1 {[%emt 0:03:53]} h6 {[%emt 0:07:10]} 13. Nhf3 {[%emt 0:03:21]} f5 {[%emt 0:05:36]} 14. Nb3 {[%emt 0:01:29]} b5 {[%emt 0:01:38]} 15. Na1 {[%emt 0:05:08]} fxe4 {[%emt 0:04:07]} 16. dxe4 {[%emt 0:01:02]} bxc4 {[%emt 0:04:09]} 17. Qa4 {[%emt 0:03:22]} Be6 {[%emt 0:04:43]} 18. Nh4 {[%emt 0:01:46]} Qd7 19. Rfd1 {[%emt 0:05:46]} Nd4 {[%emt 0:07:11]} 20. Qxd7 {[%emt 0:01:54]} Bxd7 {[%emt 0:00:21]} 21. Bxd4 {[%emt 0:01:53]} cxd4 {[%emt 0:01:08]} 22. Bf1 {[%emt 0:01:38]} g5 {[%emt 0:03:13]} 23. Ng2 {[%emt 0:00:40]} Be6 {[%emt 0:00:38]} 24. Nc2 {[%emt 0:03:17]} Nc6 {[%emt 0:01:02]} 25. a4 {[%emt 0:02:32]} Rb3 {[%emt 0:03:11]} 26. Na1 {[%emt 0:01:58]} Rb4 {[%emt 0:02:25]} 27. b3 {[%emt 0:02:49]} cxb3 {[%emt 0:01:43]} 28. Bxa6 {[%emt 0:00:32]} Na5 {[%emt 0:01:29]} 29. Bb5 {[%emt 0:01:18]} Rc8 {[%emt 0:00:35]} 30. Ne1 {[%emt 0:01:15]} b2 {[%emt 0:01:23]} 31. Nac2 {[%emt 0:00:50]} Rb3 {[%emt 0:00:31]} 32. Rd3 {[%emt 0:01:32]} Rcc3 {[%emt 0:00:46]} 33. Kf1 {[%emt 0:01:56]} Bc4 {[%emt 0:01:39]} 34. Bxc4 {[%emt 0:00:25]} Nxc4 {[%emt 0:00:21]} 35. Rxc3 {[%emt 0:00:44]} dxc3 {[%emt 0:00:24]} 36. Na1 {[%emt 0:01:34]} Ra3 {[%emt 0:00:54]} 37. Nac2 {[%emt 0:00:40]} Nd2+ {[%emt 0:00:29]} 0-1

[Event "Israel Team Ch Under 18"]
[Site "Jerusalem"]
[Date "2017.08.13"]
[Round "1"]
[White "Zhimalov, Adam"]
[Black "Tamir, Roee"]
[Result "*"]
[ECO "E32"]
[WhiteElo "2036"]
[BlackElo "1661"]
[Annotator "NA RC"]
[PlyCount "69"]
[EventDate "2017.??.??"]
[EventType "swiss"]
[EventCountry "ISR"]
[SourceTitle "playchess.com"]
[Source "ChessBase"]
[SourceQuality "1"]
[TimeControl "40/5400+30:1800+30"]

1. d4 {[%emt 0:40:12]} Nf6 {[%emt 0:40:41]} 2. c4 {[%emt 0:00:27]} e6 {[%emt 0:00:21]} 3. Nc3 {[%emt 0:00:30]} Bb4 {[%emt 0:00:24]} 4. Qc2 {[%emt 0:00:25]} O-O {[%emt 0:00:46]} 5. Nf3 {[%emt 0:00:24]} Bxc3+ {[%emt 0:00:41]} 6. bxc3 {[%emt 0:01:56]} b6 {[%emt 0:01:14]} 7. e4 {[%emt 0:00:39]} Bb7 {[%emt 0:00:45]} 8. Bd3 {[%emt 0:00:28]} h6 {[%emt 0:00:48]} 9. O-O {[%emt 0:00:32]} d6 {[%emt 0:00:30]} 10. Rd1 $14 {[%emt 0:03:33]} Qe7 {[%emt 0:02:04]} 11. a4 {[%emt 0:04:48]} a5 {[%emt 0:00:46]} 12. Qe2 {[%emt 0:00:48]} Nbd7 {[%emt 0:02:30]} 13. Re1 {[%emt 0:05:25]} e5 {[%emt 0:01:10]} 14. Nh4 {[%emt 0:01:20]} Rfe8 {[%emt 0:03:34]} 15. Nf5 {[%emt 0:00:35]} Qd8 {[%emt 0:00:30]} 16. Qf3 {[%emt 0:03:34]} Nf8 {[%emt 0:02:00]} 17. Bd2 {[%emt 0:04:08]} Ng6 {[%emt 0:02:27]} 18. Bc2 {[%emt 0:03:19]} Bc6 {[%emt 0:01:23]} 19. Rad1 {[%emt 0:01:18]} Qc8 {[%emt 0:01:15]} 20. Nxh6+ {[%emt 0:00:52]} Kf8 {[%emt 0:01:34]} 21. Nf5 {[%emt 0:00:49]} Bd7 {[%emt 0:02:35]} 22. Bg5 {[%emt 0:02:09]} Nh7 {[%emt 0:04:27]} 23. Bc1 {[%emt 0:01:30]} Nf6 {[%emt 0:01:17]} 24. d5 {[%emt 0:06:41]} Qa6 {[%emt 0:01:07]} 25. Qd3 {[%emt 0:02:40]} Nh5 {[%emt 0:02:30]} 26. Qh3 {[%emt 0:01:53]} Bxf5 {[%emt 0:01:53]} 27. exf5 {[%emt 0:00:39]} Ngf4 {[%emt 0:00:35]} 28. Qf3 {[%emt 0:01:44]} Qxc4 {[%emt 0:04:03]} 29. g3 {[%emt 0:00:59]} Nh3+ {[%emt 0:01:26]} 30. Kg2 {[%emt 0:00:27]} Nf6 {[%emt 0:00:35]} 31. Kxh3 {[%emt 0:00:53]} Ke7 {[%emt 0:01:37]} 32. Kg2 {[%emt 0:00:31]} Kd7 {[%emt 0:00:50]} 33. Bd3 {[%emt 0:00:32]} Qxa4 {[%emt 0:00:50]} 34. Qe2 {[%emt 0:00:34]} Qg4 {[%emt 0:01:59]} 35. Bb5+ {[%emt 0:00:29]} *

[Event "Israel Team Ch Under 18"]
[Site "Jerusalem"]
[Date "2017.08.13"]
[Round "1"]
[White "Gerber, Nick"]
[Black "Kaspin, Ido"]
[Result "1/2-1/2"]
[ECO "D66"]
[WhiteElo "1909"]
[BlackElo "1396"]
[Annotator "NA RC"]
[PlyCount "102"]
[EventDate "2017.??.??"]
[EventType "swiss"]
[EventCountry "ISR"]
[SourceTitle "playchess.com"]
[Source "ChessBase"]
[SourceQuality "1"]
[TimeControl "40/5400+30:1800+30"]

1. d4 {[%emt 0:40:11]} d5 {[%emt 0:40:47]} 2. Nf3 {[%emt 0:00:30]} Nf6 {[%emt 0:00:26]} 3. c4 {[%emt 0:00:28]} e6 {[%emt 0:00:29]} 4. Bg5 {[%emt 0:00:51]} Nbd7 {[%emt 0:00:57]} 5. Nc3 {[%emt 0:00:28]} c6 {[%emt 0:01:58]} 6. e3 {[%emt 0:00:41]} Be7 {[%emt 0:01:39] LiveBook: 748 Games} 7. Rc1 {[%emt 0:01:46]} O-O {[%emt 0:00:31]} 8. Bd3 {[%emt 0:01:03]} dxc4 {[%emt 0:00:35]} 9. Bxc4 {[%emt 0:00:36]} b5 {[%emt 0:00:32]} 10. Bb3 {[%emt 0:02:16]} (10. Bd3 $14) 10... Bb7 {[%emt 0:00:52]} 11. O-O $11 {[%emt 0:01:23]} Rc8 {[%emt 0:02:24]} 12. Qe2 {[%emt 0:01:52]} a6 {[%emt 0:01:58]} 13. Rfd1 {[%emt 0:06:13]} Nd5 {[%emt 0:04:31]} 14. Bxe7 {[%emt 0:11:08]} Qxe7 {[%emt 0:01:01]} 15. a3 {[%emt 0:02:18]} b4 {[%emt 0:17:12]} 16. Nxd5 {[%emt 0:02:45]} cxd5 {[%emt 0:01:47]} 17. axb4 {[%emt 0:01:28]} Qxb4 {[%emt 0:00:54]} 18. Bc2 {[%emt 0:03:26]} Nf6 {[%emt 0:02:10]} 19. Ne5 {[%emt 0:02:37]} g6 {[%emt 0:05:00]} 20. Bd3 {[%emt 0:06:37]} a5 {[%emt 0:09:10]} 21. Bb5 {[%emt 0:06:29]} Rxc1 {[%emt 0:03:01]} 22. Rxc1 {[%emt 0:00:36]} Ne4 {[%emt 0:02:09]} 23. Rc7 {[%emt 0:02:47]} Nd6 {[%emt 0:00:51]} 24. Bd3 {[%emt 0:02:23]} Qa4 {[%emt 0:01:15]} 25. h3 {[%emt 0:00:45]} Rc8 {[%emt 0:00:32]} 26. Rxc8+ {[%emt 0:00:47]} Bxc8 {[%emt 0:00:24]} 27. Qf3 {[%emt 0:00:30]} Kg7 {[%emt 0:00:36]} 28. Ng4 {[%emt 0:00:36]} Ne8 {[%emt 0:00:34]} 29. Qf4 {[%emt 0:00:38]} Qd1+ {[%emt 0:00:26]} 30. Bf1 {[%emt 0:00:24]} Ba6 {[%emt 0:00:34]} 31. Nh2 {[%emt 0:00:33]} Bxf1 {[%emt 0:00:31]} 32. Nxf1 {[%emt 0:00:00]} Qa1 {[%emt 0:00:27]} 33. Qb8 {[%emt 0:00:00]} Nf6 {[%emt 0:00:25]} 34. Qb5 {[%emt 0:00:00]} Ne4 {[%emt 0:00:23]} 35. Qe2 {[%emt 0:00:52]} Qc1 {[%emt 0:00:40]} 36. Kh2 {[%emt 0:00:36]} a4 {[%emt 0:00:29]} 37. f3 {[%emt 0:00:45]} Nd6 {[%emt 0:00:36]} 38. Ng3 {[%emt 0:00:57]} Nc4 {[%emt 0:00:25]} 39. e4 {[%emt 0:00:53]} Qxb2 {[%emt 0:00:27]} 40. Qxb2 {[%emt 0:00:29]} Nxb2 {[%emt 0:30:23]} 41. Ne2 {[%emt 0:30:24]} Nd1 {[%emt 0:00:33]} 42. Nc1 {[%emt 0:00:38]} Nc3 {[%emt 0:00:25]} 43. e5 {[%emt 0:00:31]} a3 {[%emt 0:00:23]} 44. Kg3 {[%emt 0:00:35]} Ne2+ {[%emt 0:00:34]} 45. Nxe2 {[%emt 0:00:28]} a2 {[%emt 0:00:21]} 46. Nc3 {[%emt 0:00:30]} a1=Q {[%emt 0:00:24]} 47. Nb5 {[%emt 0:00:24]} Qb2 {[%emt 0:00:25]} 48. Nd6 {[%emt 0:00:31]} Qxd4 {[%emt 0:00:25]} 49. f4 {[%emt 0:00:22]} Qe3+ {[%emt 0:00:24]} 50. Kg4 {[%emt 0:00:24]} h5+ {[%emt 0:00:24]} 51. Kg5 {[%emt 0:00:30]} Qg3# {[%emt 0:00:21]} 1/2-1/2

[Event "Israel Team Ch Under 18"]
[Site "Jerusalem"]
[Date "2017.08.13"]
[Round "1"]
[White "Rozen, Eytan"]
[Black "Federovski, Yael"]
[Result "*"]
[ECO "B22"]
[WhiteElo "1819"]
[BlackElo "1614"]
[Annotator "NA RC"]
[PlyCount "27"]
[EventDate "2017.??.??"]
[EventType "swiss"]
[EventCountry "ISR"]
[SourceTitle "playchess.com"]
[Source "ChessBase"]
[SourceQuality "1"]
[TimeControl "40/5400+30:1800+30"]

{[%evp 21,27,12,3,32767,0,-12,18,0]} 1. e4 c5 2. c3 Nf6 3. e5 Nd5 4. d4 cxd4 5. Nf3 Nc6 6. cxd4 d6 7. Bc4 Nb6 8. Bb5 dxe5 9. Nxe5 Bd7 10. Nxd7 Qxd7 11. O-O e6 12. Nc3 Be7 13. Qg4 {LiveBook: 238 Games} Bf6 $11 14. Be3 *

[Event "Israel Team Ch Under 18"]
[Site "Jerusalem"]
[Date "2017.08.13"]
[Round "1"]
[White "Barak, Gil"]
[Black "Bronstein, Paz"]
[Result "1-0"]
[ECO "B08"]
[WhiteElo "1809"]
[BlackElo "1468"]
[Annotator "NA RC"]
[PlyCount "27"]
[EventDate "2017.??.??"]
[EventType "swiss"]
[EventCountry "ISR"]
[SourceTitle "playchess.com"]
[Source "ChessBase"]
[SourceQuality "1"]
[TimeControl "40/5400+30:1800+30"]

1. e4 d6 2. d4 Nf6 3. Nc3 g6 4. h3 Bg7 5. Nf3 O-O 6. Be3 Nbd7 7. Be2 c6 8. a4 Qc7 9. O-O Re8 10. Qd2 {LiveBook: 7 Games} a6 11. Rfe1 $14 e5 12. dxe5 dxe5 13. a5 Nf8 14. Red1 1-0

[Event "Israel Team Ch Under 18"]
[Site "Jerusalem"]
[Date "2017.08.13"]
[Round "1"]
[White "Caspi, Nimi"]
[Black "Solomon, Asif"]
[Result "1/2-1/2"]
[ECO "B92"]
[WhiteElo "1780"]
[BlackElo "2041"]
[Annotator "NA RC"]
[PlyCount "68"]
[EventDate "2017.??.??"]
[EventType "swiss"]
[EventCountry "ISR"]
[SourceTitle "playchess.com"]
[Source "ChessBase"]
[SourceQuality "1"]
[TimeControl "40/5400+30:1800+30"]

{[%evp 21,63,60,68,59,102,32767,32767,32767,40,33,43,-10,55,32767,48,33,39,43,42,10,21,11,56,33,32767,22,32767,32767,32767,32767,0,-13,0,0,0,0,0,0,238,286,295,299,271,207]} 1. e4 {[%emt 0:40:12]} c5 {[%emt 0:40:52]} 2. Nf3 {[%emt 0:00:24]} d6 {[%emt 0:00:24]} 3. d4 {[%emt 0:00:24]} cxd4 {[%emt 0:00:24]} 4. Nxd4 {[%emt 0:00:24]} Nf6 {[%emt 0:00:27]} 5. Nc3 {[%emt 0:00:34]} a6 {[%emt 0:00:28]} 6. Be2 {[%emt 0:00:34]} e5 {[%emt 0:00:37]} 7. Nb3 {[%emt 0:00:24]} Be7 {[%emt 0:00:36]} 8. Be3 {[%emt 0:00:33]} O-O {[%emt 0:00:55]} 9. O-O {[%emt 0:00:45]} b5 {[%emt 0:04:33]} 10. Nd5 {[%emt 0:11:38] B92: Sicilian Najdorf: 6 Be2} (10. a4 b4 11. Nd5 Bb7 12. Bb6 Qd7 13. Nc7 Nxe4 14. Bf3 f5 15. Na5 Bc6 16. Nxc6 Qxc6 17. a5 Nd7 18. Nxa8 Rxa8 {1-0 (82) Savchenko,B (2568)-Andriasian,Z (2460) Internet 2006}) 10... Nbd7 {[%emt 0:06:24]} 11. Nxe7+ {[%emt 0:05:23]} Qxe7 {[%emt 0:00:38]} 12. f3 {[%emt 0:08:15]} Nc5 {[%emt 0:06:17]} (12... Qe6 $14) 13. Qd2 {[%emt 0:12:28]} Be6 {[%emt 0:03:00]} 14. Rfd1 $146 {[%emt 0:01:33]} ({Predecessor:} 14. Nxc5 dxc5 15. b3 Nd7 {½-½ (15) Thielemann,F (1447)-Schmieder,W (1582) Bad Sooden 2003}) 14... Nxb3 {[%emt 0:02:45]} 15. axb3 {[%emt 0:01:29]} d5 {[%emt 0:01:11]} 16. Bg5 {[%emt 0:03:13]} Rfd8 {[%emt 0:05:47]} ({Better is} 16... dxe4 $11 17. fxe4 Qc5+ 18. Qe3 (18. Be3 Qc6 $11) 18... Qxc2) 17. exd5 {[%emt 0:03:16]} Bxd5 {[%emt 0:05:40]} 18. Qe3 {[%emt 0:01:46]} h6 {[%emt 0:02:34]} 19. Bh4 {[%emt 0:02:38]} Qe6 {[%emt 0:02:30]} 20. Bxf6 {[%emt 0:01:20]} Qxf6 {[%emt 0:00:34]} 21. c4 {[%emt 0:00:29]} bxc4 {[%emt 0:05:46]} 22. bxc4 {[%emt 0:00:31]} Bb7 {[%emt 0:00:50]} 23. Rxd8+ {[%emt 0:01:56]} Rxd8 {[%emt 0:00:53]} 24. Rd1 {[%emt 0:00:29]} Rxd1+ {[%emt 0:00:47]} 25. Bxd1 {[%emt 0:00:21]} e4 {[%emt 0:01:05]} 26. Bc2 {[%emt 0:01:16]} Qxb2 {[%emt 0:01:16]} 27. Bxe4 {[%emt 0:00:27]} Qa1+ {[%emt 0:01:05]} 28. Kf2 {[%emt 0:00:22]} Qb2+ {[%emt 0:01:36]} 29. Kg3 {[%emt 0:00:35]} Qe5+ $2 {[%emt 0:00:48]} (29... Bxe4 $11 30. Qxe4 Qb8+ 31. f4 Qb3+ 32. Kh4 Qa4) 30. Qf4 {[%emt 0:00:48]} Qxf4+ {[%emt 0:01:17]} 31. Kxf4 {[%emt 0:00:21]} g5+ {[%emt 0:02:40]} 32. Ke3 $18 {[%emt 0:00:27]} Bxe4 {[%emt 0:01:26]} 33. Kxe4 {[%emt 0:00:20]} Kf8 {[%emt 0:00:32]} 34. Kd5 {[%emt 0:00:27]} Ke7 1/2-1/2

[Event "Israel Team Ch Under 18"]
[Site "Jerusalem"]
[Date "2017.08.13"]
[Round "1"]
[White "Zach, Asif"]
[Black "Vazana, Yochay"]
[Result "0-1"]
[ECO "B40"]
[WhiteElo "1600"]
[BlackElo "1909"]
[Annotator "NA RC"]
[PlyCount "58"]
[EventDate "2017.??.??"]
[EventType "swiss"]
[EventCountry "ISR"]
[SourceTitle "playchess.com"]
[Source "ChessBase"]
[SourceQuality "1"]
[TimeControl "40/5400+30:1800+30"]

1. e4 c5 2. Nf3 e6 3. d4 cxd4 4. Nxd4 Nf6 5. Nc3 Nc6 6. f3 Bc5 {B45: Sicilian Four Knights} (6... Bb4 7. a3 Bxc3+ 8. bxc3 O-O 9. Bg5 Ne5 10. Be2 Ng6 11. c4 h6 12. Be3 d5 13. exd5 exd5 14. O-O {½-½ (36) Salvador Marques,C (2351)-Destruels Moreno,V (2370) ICCF email 2012}) 7. Be3 (7. Nxc6 $14 bxc6 8. e5) 7... Qb6 8. Na4 Qa5+ 9. c3 Be7 (9... Bxd4 $5 10. Bxd4 Nxd4 11. Qxd4 d6 $11) 10. b4 $146 ({Predecessor:} 10. Nxc6 bxc6 11. b4 Qc7 12. Bd3 O-O 13. f4 e5 14. O-O {0-1 (45) Dai,I (1548)-Kanakova,N (1945) Batumi 2014}) 10... Qc7 11. Nb5 (11. b5 $14) 11... Qe5 ({Better is} 11... Qb8 $15) 12. Qd2 g5 13. Bc5 $2 (13. h4 $18 {is more deadly.}) 13... d5 14. Bxe7 $2 (14. h4 $16) 14... Kxe7 15. Be2 dxe4 16. O-O e3 (16... Rd8 $17 17. Qe3 b6 18. fxe4 Ba6) 17. Qb2 Bd7 18. Nc5 b6 (18... a6 $11 19. Nd4 Rhd8) 19. Nb3 $2 (19. Nd3 $1 $14 {was the only good move.} Qb8 20. c4) 19... Nd5 20. N3d4 Nf4 21. Nxc6+ $19 (21. g3 $17 {might work better.}) 21... Bxc6 22. Nd4 Bb7 23. Rad1 Rac8 24. Qa3 Rhd8 25. Qxa7 Qc7 26. Nb5 Nxe2+ 27. Kh1 Qc6 28. Qa3 Rxd1 29. Rxd1 Qxf3 0-1

[Event "Israel Team Ch Under 18"]
[Site "Jerusalem"]
[Date "2017.08.13"]
[Round "2"]
[White "Aroesti, Roee"]
[Black "Gorshtein, Ido"]
[Result "*"]
[ECO "B72"]
[WhiteElo "2304"]
[BlackElo "2148"]
[Annotator "NA"]
[PlyCount "34"]
[EventDate "2017.??.??"]
[EventType "swiss"]
[EventCountry "ISR"]
[SourceTitle "playchess.com"]
[Source "ChessBase"]
[SourceQuality "1"]
[TimeControl "40/5400+30:1800+30"]

1. e4 {[%emt 0:40:12]} c5 {[%emt 0:40:47]} 2. Nf3 {[%emt 0:00:22]} d6 {[%emt 0:00:36]} 3. d4 {[%emt 0:00:32]} cxd4 {[%emt 0:00:24]} 4. Nxd4 {[%emt 0:00:25]} Nf6 {[%emt 0:00:24]} 5. Nc3 {[%emt 0:00:26]} g6 {[%emt 0:00:26]} 6. Be3 {[%emt 0:00:25]} Bg7 {[%emt 0:00:29]} 7. Be2 {[%emt 0:00:22]} Nc6 {[%emt 0:00:30]} 8. Qd2 {[%emt 0:00:27]} Ng4 {[%emt 0:00:45]} 9. Bxg4 {[%emt 0:00:23]} Bxg4 {[%emt 0:00:25]} 10. f3 {[%emt 0:00:32]} Bd7 {[%emt 0:00:56]} 11. O-O-O {[%emt 0:00:33]} Ne5 {[%emt 0:02:14]} 12. b3 {[%emt 0:00:30]} Qa5 {[%emt 0:02:08]} 13. Kb1 {[%emt 0:00:52]} Nc6 {[%emt 0:02:34]} 14. Nd5 {[%emt 0:02:17]} Qxd2 {[%emt 0:00:50]} 15. Rxd2 {[%emt 0:00:22]} Bxd4 {[%emt 0:03:27]} 16. Bxd4 {[%emt 0:00:44]} Nxd4 {[%emt 0:00:43]} 17. Rxd4 {[%emt 0:00:28]} Rc8 $11 {[%emt 0:01:02]} *

[Event "Israel Team Ch Under 18"]
[Site "Jerusalem"]
[Date "2017.08.13"]
[Round "2"]
[White "Tzidkiya, Yeshaayahu"]
[Black "Feldman, Anthony"]
[Result "*"]
[ECO "B12"]
[WhiteElo "2156"]
[BlackElo "1975"]
[Annotator "ChessBase"]
[PlyCount "31"]
[EventDate "2017.??.??"]
[EventType "swiss"]
[EventCountry "ISR"]
[SourceTitle "playchess.com"]
[Source "ChessBase"]
[SourceQuality "1"]
[TimeControl "40/5400+30:1800+30"]

1. e4 c6 2. d4 d5 3. exd5 cxd5 4. Nc3 Nc6 5. Bf4 a6 6. Nf3 Bg4 7. Be2 Nf6 8. O-O e6 9. Ne5 Bf5 10. Nxc6 bxc6 11. Na4 Be7 12. Nc5 Qb6 13. b4 O-O 14. a3 a5 15. c3 Ra7 16. Qd2 *

[Event "Israel Team Ch Under 18"]
[Site "Jerusalem"]
[Date "2017.08.13"]
[Round "2"]
[White "Lukin, Elisha"]
[Black "Barak, Gil"]
[Result "1-0"]
[ECO "C07"]
[WhiteElo "2006"]
[BlackElo "1809"]
[Annotator "NA"]
[PlyCount "57"]
[EventDate "2017.??.??"]
[EventType "swiss"]
[EventCountry "ISR"]
[SourceTitle "playchess.com"]
[Source "ChessBase"]
[SourceQuality "1"]
[TimeControl "40/5400+30:1800+30"]

1. e4 {[%emt 0:40:11]} e6 {[%emt 0:40:43]} 2. d4 {[%emt 0:00:22]} d5 {[%emt 0:00:24]} 3. Nd2 {[%emt 0:00:27]} c5 {[%emt 0:00:34]} 4. Ngf3 {[%emt 0:00:27]} cxd4 {[%emt 0:00:50]} 5. Nxd4 {[%emt 0:00:31]} Nc6 {[%emt 0:00:28]} 6. Bb5 {[%emt 0:00:37]} Bd7 {[%emt 0:02:37]} 7. Nxc6 {[%emt 0:00:22]} bxc6 {[%emt 0:00:24]} 8. Bd3 {[%emt 0:00:25]} Bd6 {[%emt 0:00:38]} 9. c4 {[%emt 0:00:43]} Nf6 {[%emt 0:07:39]} 10. O-O {[%emt 0:02:35]} O-O {[%emt 0:00:32]} 11. Qc2 {[%emt 0:04:15]} dxe4 {[%emt 0:10:32]} 12. Nxe4 {[%emt 0:00:41]} Nxe4 {[%emt 0:01:02]} 13. Bxe4 {[%emt 0:00:21]} f5 {[%emt 0:00:30]} 14. Bf3 {[%emt 0:02:15]} e5 {[%emt 0:00:51]} 15. Rd1 {[%emt 0:01:20]} Qe7 {[%emt 0:09:23]} 16. Qd3 {[%emt 0:05:08]} Rf6 {[%emt 0:01:34]} 17. Bg5 {[%emt 0:03:47]} Raf8 {[%emt 0:00:21]} 18. Bxf6 {[%emt 0:00:42]} Rxf6 {[%emt 0:00:21]} 19. c5 {[%emt 0:00:44]} e4 {[%emt 0:01:05]} 20. cxd6 {[%emt 0:00:46]} Qf8 {[%emt 0:02:07]} 21. Qc4+ {[%emt 0:03:37]} Be6 {[%emt 0:00:22]} 22. Qxc6 {[%emt 0:00:32]} exf3 {[%emt 0:00:26]} 23. Qxf3 {[%emt 0:00:24]} Bd7 {[%emt 0:00:43]} 24. Qd5+ $16 {[%emt 0:00:48]} Kh8 {[%emt 0:00:36]} 25. Rac1 {[%emt 0:00:31]} f4 {[%emt 0:01:15]} 26. Rc7 {[%emt 0:00:38]} Be6 {[%emt 0:02:44]} 27. Qxe6 {[%emt 0:03:00]} Rxe6 {[%emt 0:00:30]} 28. d7 {[%emt 0:00:23]} h6 {[%emt 0:01:55]} 29. Rc8 {[%emt 0:01:11]} 1-0

[Event "Israel Team Ch Under 18"]
[Site "Jerusalem"]
[Date "2017.08.13"]
[Round "2"]
[White "Kereth, Oren"]
[Black "Gorshtein, Asaf"]
[Result "1-0"]
[ECO "B17"]
[WhiteElo "1989"]
[BlackElo "1926"]
[Annotator "NA"]
[PlyCount "60"]
[EventDate "2017.??.??"]
[EventType "swiss"]
[EventCountry "ISR"]
[SourceTitle "playchess.com"]
[Source "ChessBase"]
[SourceQuality "1"]
[TimeControl "40/5400+30:1800+30"]

{[%evp 13,59,25,33,32767,32767,32767,32767,32767,32767,11,3,9,11,2,40,2,12,13,17,-12,15,32767,32767,32767,32767,32767,32767,32767,32767,15,16,32767,32767,32767,0,0,0,0,0,0,0,0,58,24,8,0,48,20]} 1. e4 c6 2. d4 d5 3. Nc3 dxe4 4. Nxe4 Nd7 5. Nf3 Ngf6 6. Nxf6+ Nxf6 7. Bd3 Bg4 8. c3 e6 9. Bf4 Bd6 {B17: Caro-Kann: Modern Line (4...Nd7)} (9... Be7 10. h3 Bxf3 11. Qxf3 Qd5 12. Qxd5 Nxd5 13. Bg3 O-O 14. O-O Rfd8 15. Rad1 Rd7 16. Be2 Rad8 17. Rd3 Bd6 18. Bxd6 Rxd6 19. g3 g6 20. Rfd1 {½-½ (21) Flermoen,P (2250)-Ekeberg,C (2251) Norway 2016}) 10. Bxd6 Qxd6 11. h3 Bxf3 12. Qxf3 O-O-O 13. O-O-O Qd5 $146 ({Predecessor:} 13... Qc7 14. Kb1 Rhe8 15. Rhe1 e5 16. dxe5 Rxe5 17. Bf5+ {0-1 (47) Buttner,N-Zapata,P (2043) Villa Ballester 2002}) 14. Qxd5 Rxd5 15. Rhe1 Rhd8 16. Re5 c5 17. Bc4 Rxe5 18. dxe5 Rxd1+ 19. Kxd1 Nd7 20. f4 a6 21. Kd2 Kc7 22. Ke3 g6 23. g4 h6 24. Ke4 b5 25. Bb3 c4 26. Bc2 Kc6 27. Kd4 Nb6 (27... g5 $11) 28. Be4+ Kc7 $1 29. Bc2 Kc6 30. h4 $11 a5 1-0

[Event "Israel Team Ch Under 18"]
[Site "Jerusalem"]
[Date "2017.08.13"]
[Round "2"]
[White "Adar, Ida"]
[Black "Milikow, Elie"]
[Result "1-0"]
[ECO "A45"]
[WhiteElo "1976"]
[BlackElo "2082"]
[Annotator "NA RC"]
[PlyCount "43"]
[EventDate "2017.??.??"]
[EventType "swiss"]
[EventCountry "ISR"]
[SourceTitle "playchess.com"]
[Source "ChessBase"]
[SourceQuality "1"]
[TimeControl "40/5400+30:1800+30"]

{[%evp 15,43,64,32767,58,66,46,127,128,135,86,92,32767,32767,32767,32767,182,383,384,482,216,1203,983,777,943,1477,1447,1556,889,29981,29989]} 1. d4 {[%emt 0:40:14]} Nf6 {[%emt 0:40:48]} 2. Bg5 {[%emt 0:00:27]} Ne4 {[%emt 0:00:27]} 3. Bf4 {[%emt 0:00:25]} c5 {[%emt 0:01:14]} 4. f3 {[%emt 0:00:34]} Nf6 {[%emt 0:00:28]} 5. dxc5 {[%emt 0:01:07]} Qa5+ {[%emt 0:00:34]} 6. Nc3 {[%emt 0:00:50]} Qxc5 {[%emt 0:00:48]} 7. e4 {[%emt 0:00:49]} e6 {[%emt 0:01:25] A45: Trompowsky Attack} (7... d6 8. Qd2 Nbd7 9. Be3 Qc6 10. Nge2 e5 11. Nc1 Be7 12. Be2 O-O 13. a4 Nb6 14. N1a2 d5 15. Bb5 Qd6 16. a5 {1-0 (54) Vitiugov,N (2742)-Cheparinov,I (2682) Dubai 2014}) 8. Qd2 {[%emt 0:00:47]} Be7 {[%emt 0:01:17]} 9. O-O-O {[%emt 0:02:40]} O-O {[%emt 0:01:44]} 10. g4 {[%emt 0:02:23]} (10. e5 $5 {[%cal Re5f6]} Ne8 11. Ne4 $14) 10... a6 {[%emt 0:01:13]} (10... Nc6 $14) 11. Kb1 $146 {[%emt 0:01:54]} ({Predecessor:} 11. e5 Ne8 12. Ne4 Qc6 13. Bd3 {1-0 (24) Vouldis,A (2497)-Stiri,A (2097) Ano Liosia 2000}) 11... b5 {[%emt 0:01:42]} 12. g5 {[%emt 0:04:31]} Ne8 {[%emt 0:05:14]} 13. h4 {[%emt 0:05:14]} Bb7 {[%emt 0:02:46]} 14. h5 {[%emt 0:05:22]} Nc7 {[%emt 0:02:51] [#]} 15. g6 $1 {[%emt 0:06:07]} fxg6 $2 {[%emt 0:01:15]} (15... Ne8 16. gxh7+ Kxh7) 16. hxg6 {[%emt 0:01:23]} hxg6 {[%emt 0:00:33]} 17. Qh2 (17. Be3 $142 Qc6 18. Qh2) 17... Rc8 $2 {[%emt 0:01:34]} (17... Rxf4 18. Qxf4 d6) 18. Qh7+ {[%emt 0:02:24]} Kf7 {[%emt 0:01:40]} 19. Rh6 {[%emt 0:01:27]} b4 {[%emt 0:00:58]} 20. Qxg6+ {[%emt 0:01:17]} Kg8 {[%emt 0:00:57]} 21. Rh7 {[%emt 0:02:05]} (21. e5 $142 Rf8 22. Bd3) 21... Ne8 {[%emt 0:01:14]} 22. e5 {[%emt 0:03:26]} 1-0